[Event "10th Iberoamericano-ch 2024"]
[Site "Linares"]
[Date "2024.09.25"]
[Round "1.26"]
[White "Li Chen, Helena Joana"]
[Black "Perea Fruet, Lorenzo"]
[Result "0-1"]
[ECO "B12"]
[WhiteElo "2068"]
[BlackElo "2389"]
[Annotator "TA"]
[PlyCount "76"]
[EventDate "2024.09.25"]
[EventType "swiss"]
[EventCountry "ESP"]
[SourceTitle "playchess.com"]
[Source "ChessBase"]
[SourceQuality "1"]
[TimeControl "5400+30"]

{[%evp 9,76,0,8,0,0,0,-9,-12,-10,-46,-22,-85,-82,-162,-165,-146,-156,-125,-131,-252,-249,-260,-218,-249,-258,-262,-243,-237,-234,-239,-172,-160,-177,-177,-173,-163,-154,-208,-185,-231,-223,-243,-229,-263,-241,-734,-715,-872,-802,-5335,-5018,-5718,-5718,-5706,-5706,-5608,-4998,-29966,-29963,-29963,-29965,-29972,-29973,-29973,-29973,-29982,-29983,-29983,-29984]} 1. e4 {[%emt 0:00:02]} c6 {[%emt 0:00:53]} 2. d4 {[%emt 0:00:14]} d5 {[%emt 0:00:11]} 3. e5 {[%emt 0:00:08]} Bf5 {[%emt 0:00:18]} 4. h4 {[%emt 0:02:14]} a6 {[%emt 0:00:56]} 5. g4 {[%emt 0:05:41]} Bd7 {[%emt 0:00:05][%cal Oc6c5]} 6. c4 {[%emt 0:02:46]} e6 {[%emt 0:05:33]} 7. Nf3 {[%emt 0:06:55]} c5 {[%emt 0:07:01]} 8. cxd5 {[%emt 0:11:17] The position is equal.} exd5 {[%emt 0:03:39]} 9. Rg1 {[%emt 0:05:03]} Nc6 {[%emt 0:04:07]} 10. h5 {[%emt 0:06:19]} (10. Nc3 $1 $11 {remains equal.}) 10... Qb6 $17 {[%emt 0:04:32]} 11. dxc5 {[%emt 0:06:04]} (11. Nc3 $17 cxd4 12. Ne2) 11... Bxc5 $19 {[%emt 0:02:09]} 12. Rg2 {[%emt 0:00:54][%cal Of1d3]} Nh6 {[%emt 0:06:48] Black is more active.} 13. Bxh6 {[%emt 0:05:32]} gxh6 {[%emt 0:00:57]} 14. Qe2 {[%emt 0:05:54]} (14. Be2 $17) 14... Qb4+ {[%emt 0:06:55]} 15. Nbd2 {[%emt 0:05:39]} Bxg4 {[%emt 0:02:43]} 16. a3 {[%emt 0:01:34] [#]} Qf4 {[%emt 0:05:10][%cal Oc5a7]} (16... Qxb2 17. Rb1 Bxf3 (17... Qxa3 $2 18. Rxg4 O-O-O 19. Rf4 $18) 18. Rxb2 $17) 17. Qd3 {[%emt 0:01:15]} Nxe5 {[%emt 0:06:06]} 18. Nxe5 {[%emt 0:02:21]} Qxe5+ {[%emt 0:00:32]} 19. Be2 {[%emt 0:00:00]} Qxe2+ {[%emt 0:05:14]} (19... Qxb2 $2 {loses.} 20. Rb1 Qxa3 21. Qxa3 (21. Rxg4 Qxd3 22. Bxd3 b6 $16) 21... Bxa3 22. Bxg4 $18 (22. Rxg4 b5 $18)) (19... Bxh5 20. f4 Qxf4 (20... Qxb2 21. Rb1 $11) 21. Qxd5 Qh4+ 22. Kd1 Qh1+ 23. Kc2 Bg6+ (23... Qxa1 24. Bxh5 Be7 25. Bxf7+ Kf8 26. Bh5 Rc8+ 27. Kb3) 24. Kb3 Qh3+ (24... Qxa1 $2 25. Qxc5 f6 26. Qe3+ Kf8 27. Qc5+ Ke8 28. Rg1 $18) 25. Bf3 $15) 20. Qxe2+ {[%emt 0:00:00]} Bxe2 {[%emt 0:00:03]} 21. Kxe2 {[%emt 0:00:00]} Ke7 {[%emt 0:01:26]} 22. Nb3 {[%emt 0:05:16]} Bb6 {[%emt 0:00:47]} 23. Rd1 {[%emt 0:00:10]} (23. Rg4 $17 {keeps fighting.}) 23... Rad8 {[%emt 0:01:02]} 24. Rgg1 {[%emt 0:02:04]} (24. Nc1 {is a better defense.}) 24... Rhe8 {[%emt 0:00:56]} 25. Kf3 {[%emt 0:00:49]} Kf8 {[%emt 0:01:44]} 26. Nd4 {[%emt 0:01:34]} Re5 {[%emt 0:01:26]} 27. Kf4 $2 {[%emt 0:03:15]} (27. Rg4) 27... Re4+ {[%emt 0:00:09]} 28. Kf5 {[%emt 0:05:58]} Rxd4 {[%emt 0:00:06]} 29. Rde1 {[%emt 0:00:45]} Bc7 {[%emt 0:00:51]} 30. Rg4 {[%emt 0:00:07] Prevents Rf4+.} Rxg4 {[%emt 0:00:04]} 31. Kxg4 {[%emt 0:00:06][%mdl 4096] Endgame. KRB-KR} d4 {[%emt 0:00:11] [#] Threatens to win with ...d3.} 32. Kf3 {[%emt 0:00:14]} d3 {[%emt 0:00:35][%cal Oc7e5] ( -> ...Be5!)} 33. Rc1 {[%emt 0:00:06]} d2 {[%emt 0:00:12] Black mates.} 34. Rd1 {[%emt 0:00:05]} Be5 {[%emt 0:00:12]} 35. b4 {[%emt 0:00:33]} Bb2 {[%emt 0:00:04]} 36. Ke2 {[%emt 0:00:16]} Bxa3 {[%emt 0:00:06]} 37. Rxd2 {[%emt 0:00:10]} Rxd2+ {[%emt 0:00:05]} 38. Kxd2 {[%emt 0:00:02]} Bxb4+ {[%emt 0:00:10] White did not feel at home in the position after the opening.   Weighted Error Value: White=0.91/Black=0.12 (very precise) .  Mistake:       	White=6     	---        Inaccurate:     	White=1     	Black=1      OK:         	White=3     	Black=10     Best:        	White=1     	Black=2} 0-1

[Event "10th Iberoamericano-ch 2024"]
[Site "Linares"]
[Date "2024.09.25"]
[Round "1.27"]
[White "Prado Lobo, Jonas"]
[Black "Mayorga Araya, Sofia"]
[Result "0-1"]
[ECO "E06"]
[WhiteElo "2385"]
[BlackElo "2059"]
[Annotator "TA"]
[PlyCount "52"]
[EventDate "2024.09.25"]
[EventType "swiss"]
[EventCountry "ESP"]
[SourceTitle "playchess.com"]
[Source "ChessBase"]
[SourceQuality "1"]
[TimeControl "5400+30"]

{[%evp 15,52,39,41,39,56,51,57,58,68,38,29,32,16,40,44,19,22,22,59,4,0,-12,-3,-12,-22,-725,-692,-781,-782,-790,-754,-814,-826,-920,-920,-901,-890,-796,-791]} 1. Nf3 {[%emt 0:00:03]} Nf6 {[%emt 0:00:08]} 2. c4 {[%emt 0:00:13]} e6 {[%emt 0:00:12]} 3. d4 {[%emt 0:00:19]} d5 {[%emt 0:00:08]} 4. g3 {[%emt 0:01:08]} Be7 {[%emt 0:00:25]} 5. Bg2 {[%emt 0:00:08]} O-O {[%emt 0:00:17]} 6. O-O {[%emt 0:00:55]} c5 {[%emt 0:00:47]} 7. cxd5 {[%emt 0:01:39]} exd5 {[%emt 0:00:16]} 8. dxc5 {[%emt 0:03:01]} Bxc5 {[%emt 0:01:07]} 9. a3 {[%emt 0:00:56]} h6 {[%emt 0:00:56]} 10. b4 {[%emt 0:00:46]} Bb6 {[%emt 0:00:53]} 11. Bb2 {[%emt 0:02:05] White is slightly better.} a5 {[%emt 0:01:25]} 12. b5 {[%emt 0:12:24]} Nbd7 {[%emt 0:04:53]} 13. Nc3 {[%emt 0:10:39]} Nc5 {[%emt 0:02:36]} 14. Na4 {[%emt 0:01:18]} Nxa4 {[%emt 0:02:22]} 15. Qxa4 {[%emt 0:00:05]} Re8 {[%emt 0:02:19]} 16. e3 {[%emt 0:04:07]} Bf5 {[%emt 0:01:36]} 17. Nd4 {[%emt 0:05:00]} ({White should play} 17. Qf4 $14 Be4 18. Rac1) 17... Bg6 $11 {[%emt 0:01:17]} 18. Rfc1 {[%emt 0:11:46]} Ne4 {[%emt 0:02:39]} 19. Qd1 {[%emt 0:05:43]} a4 {[%emt 0:07:20]} 20. Ne2 $2 {[%emt 0:13:03][%mdl 8192] [#] This costs White the game.} (20. Qe2 $11) 20... Nxf2 $1 $19 {[%emt 0:09:19][%mdl 512] Black is clearly winning.} 21. Kxf2 {[%emt 0:00:10][%cal Ob2d4] Hoping for Bd4!} (21. Qxd5 Bxe3) 21... Bxe3+ {[%emt 0:00:08]} 22. Kf1 {[%emt 0:02:00]} Bh5 {[%emt 0:01:41]} 23. Rc2 {[%emt 0:08:15] [#]} d4 $1 {[%emt 0:00:56][%mdl 512]} 24. Bxd4 {[%emt 0:06:11]} (24. Qd3 Bg6) 24... Bxd4 {[%emt 0:00:18]} 25. Nxd4 {[%emt 0:00:24]} Bxd1 {[%emt 0:00:26]} 26. Rxd1 {[%emt 0:00:04]} Qb6 {[%emt 0:02:23] Weighted Error Value: White=0.59/Black=0.04 (flawless) .  Loses game:     	White=1     	---        Mistake:       	White=1     	---        Inaccurate:     	White=1     	Black=1      OK:         	White=3     	Black=6      Best:        	---       	Black=1      Brilliant:      	---       	Black=1} 0-1

[Event "10th Iberoamericano-ch 2024"]
[Site "Linares"]
[Date "2024.09.25"]
[Round "1.28"]
[White "Gavarrete, Joel"]
[Black "Vega Gutierrez, Sabrina"]
[Result "0-1"]
[ECO "A06"]
[WhiteElo "2059"]
[BlackElo "2374"]
[Annotator "RC"]
[PlyCount "62"]
[EventDate "2024.09.25"]
[EventType "swiss"]
[EventCountry "ESP"]
[SourceTitle "playchess.com"]
[Source "ChessBase"]
[SourceQuality "1"]
[TimeControl "5400+30"]

1. Nf3 {[%emt 0:03:07]} d5 {[%emt 0:00:28]} 2. b3 {[%emt 0:00:49]} Nf6 {[%emt 0:00:24]} 3. Bb2 {[%emt 0:00:08]} Bf5 {[%emt 0:00:15]} 4. e3 {[%emt 0:03:17]} e6 {[%emt 0:01:12]} 5. Be2 {[%emt 0:00:27]} h6 {[%emt 0:00:15]} 6. O-O {[%emt 0:01:20]} Bd6 {[%emt 0:00:54]} 7. c4 {[%emt 0:03:38]} Nbd7 {[%emt 0:01:04]} 8. d3 {[%emt 0:03:48]} O-O {[%emt 0:01:48]} 9. Nbd2 {[%emt 0:02:50]} Bh7 {[%emt 0:01:39]} 10. a3 {[%emt 0:04:06]} a5 {[%emt 0:00:29]} 11. Qc2 {[%emt 0:07:05]} Qe7 {[%emt 0:01:19]} 12. Rfe1 {[%emt 0:04:16]} c6 {[%emt 0:02:17]} 13. Qc3 {[%emt 0:17:20]} e5 {[%emt 0:08:20]} 14. d4 {[%emt 0:03:08]} e4 {[%emt 0:14:25]} 15. Ne5 {[%emt 0:00:14]} Bf5 {[%emt 0:04:57]} 16. f4 {[%emt 0:03:39]} exf3 {[%emt 0:05:49]} 17. gxf3 {[%emt 0:05:02]} Rfe8 {[%emt 0:01:07]} 18. f4 {[%emt 0:01:36]} Nf8 {[%emt 0:02:09]} 19. Bf3 {[%emt 0:09:16]} Ne4 {[%emt 0:03:28]} 20. Nxe4 {[%emt 0:05:09]} dxe4 {[%emt 0:01:22]} 21. Bg4 {[%emt 0:01:33]} Bxg4 {[%emt 0:03:20]} 22. Nxg4 {[%emt 0:00:03]} Qh4 {[%emt 0:00:18]} 23. Nf2 {[%emt 0:04:56]} Re6 {[%emt 0:00:58]} 24. Kf1 {[%emt 0:04:34]} Qxh2 {[%emt 0:04:24]} 25. Ke2 {[%emt 0:01:37]} Bxf4 {[%emt 0:02:31]} 26. Rg1 {[%emt 0:06:09]} Bg3 {[%emt 0:01:17]} 27. Raf1 {[%emt 0:00:09]} Bxf2 {[%emt 0:08:16]} 28. Rxg7+ {[%emt 0:00:17]} Kxg7 {[%emt 0:00:15]} 29. d5+ {[%emt 0:00:07]} f6 {[%emt 0:00:32]} 30. Rxf2 {[%emt 0:00:09]} Qh5+ {[%emt 0:00:40]} 31. Kd2 {[%emt 0:01:07]} Re5 {[%emt 0:00:16]} 0-1

[Event "10th Iberoamericano-ch 2024"]
[Site "Linares"]
[Date "2024.09.25"]
[Round "1.29"]
[White "Ladron De Guevara Pinto, Paolo"]
[Black "Aragon Trujillo, Ricardo M."]
[Result "1-0"]
[ECO "B90"]
[WhiteElo "2371"]
[BlackElo "2057"]
[Annotator "RC"]
[PlyCount "125"]
[EventDate "2024.09.25"]
[EventType "swiss"]
[EventCountry "ESP"]
[SourceTitle "playchess.com"]
[Source "ChessBase"]
[SourceQuality "1"]
[TimeControl "5400+30"]

1. e4 {[%emt 0:00:04]} c5 {[%emt 0:02:08]} 2. Nf3 {[%emt 0:00:17]} d6 {[%emt 0:00:08]} 3. d4 {[%emt 0:02:36]} Nf6 {[%emt 0:00:11]} 4. Nc3 {[%emt 0:00:14]} cxd4 {[%emt 0:00:06]} 5. Nxd4 {[%emt 0:00:07]} a6 {[%emt 0:00:03]} 6. Be3 {[%emt 0:00:14]} e5 {[%emt 0:00:10]} 7. Nb3 {[%emt 0:00:06]} Be7 {[%emt 0:00:14]} 8. Qd2 {[%emt 0:00:08]} Ng4 {[%emt 0:01:19]} 9. g3 {[%emt 0:00:23]} O-O {[%emt 0:08:24]} 10. Nd5 {[%emt 0:04:55]} Nxe3 {[%emt 0:00:16]} 11. Nxe3 {[%emt 0:04:00]} b5 {[%emt 0:07:25]} 12. Bg2 {[%emt 0:03:23]} Nd7 {[%emt 0:01:33]} 13. O-O {[%emt 0:05:51]} Nb6 {[%emt 0:05:27]} 14. Na5 {[%emt 0:09:05]} Qc7 {[%emt 0:11:53]} 15. f4 {[%emt 0:12:54]} Bd8 {[%emt 0:13:38]} 16. Rad1 {[%emt 0:11:33]} Na4 {[%emt 0:04:37]} 17. b4 {[%emt 0:04:06]} Nc3 {[%emt 0:15:41]} 18. Rde1 {[%emt 0:00:06]} Re8 {[%emt 0:09:42]} 19. f5 {[%emt 0:04:37]} Bd7 {[%emt 0:05:10]} 20. Nac4 {[%emt 0:02:04]} bxc4 {[%emt 0:01:38]} 21. Qxc3 {[%emt 0:00:05]} Rc8 {[%emt 0:00:37]} 22. Kh1 {[%emt 0:00:24]} Qb7 {[%emt 0:02:23]} 23. Rd1 {[%emt 0:06:00]} Bb6 {[%emt 0:01:54]} 24. Nd5 {[%emt 0:00:21]} Bd4 {[%emt 0:00:49]} 25. Qf3 {[%emt 0:00:17]} f6 {[%emt 0:04:44]} 26. c3 {[%emt 0:00:04]} Bb6 {[%emt 0:00:27]} 27. Rd2 {[%emt 0:02:43]} a5 {[%emt 0:00:26]} 28. a3 {[%emt 0:00:06]} axb4 {[%emt 0:00:26]} 29. axb4 {[%emt 0:00:05]} Ba4 {[%emt 0:00:45]} 30. g4 {[%emt 0:00:28]} Bd8 {[%emt 0:00:32]} 31. h4 {[%emt 0:00:04]} Bc6 {[%emt 0:00:26]} 32. Ne3 {[%emt 0:00:27]} Be7 {[%emt 0:00:23]} 33. Rb1 {[%emt 0:00:42]} Bb5 {[%emt 0:01:10]} 34. Nd5 {[%emt 0:01:25]} Ra8 {[%emt 0:00:27]} 35. Qe3 {[%emt 0:00:15]} h6 {[%emt 0:01:05]} 36. Nxe7+ {[%emt 0:01:24]} Qxe7 {[%emt 0:00:02]} 37. Qb6 {[%emt 0:00:06]} Reb8 {[%emt 0:00:16]} 38. Qxd6 {[%emt 0:00:16]} Qxd6 {[%emt 0:00:04]} 39. Rxd6 {[%emt 0:00:05]} Ra2 {[%emt 0:00:18]} 40. Rc1 {[%emt 0:00:14]} Rf2 {[%emt 0:01:30]} 41. Kg1 {[%emt 0:06:02]} Rf4 {[%emt 0:00:13]} 42. g5 {[%emt 0:02:30]} Kf7 {[%emt 0:00:01]} 43. g6+ {[%emt 0:00:33]} Ke7 {[%emt 0:01:24]} 44. Re6+ {[%emt 0:00:05]} Kf8 {[%emt 0:00:57]} 45. Ra1 {[%emt 0:02:40]} Bd7 {[%emt 0:01:02]} 46. Rd6 {[%emt 0:00:18]} Ke7 {[%emt 0:00:12]} 47. Rad1 {[%emt 0:00:21]} Rb7 {[%emt 0:00:46]} 48. h5 {[%emt 0:00:07]} Kd8 {[%emt 0:00:47]} 49. b5 {[%emt 0:03:13]} Kc8 {[%emt 0:00:10]} 50. b6 {[%emt 0:00:06]} Rg4 {[%emt 0:00:31]} 51. Kf2 {[%emt 0:01:33]} Rh4 {[%emt 0:00:07]} 52. Ra1 {[%emt 0:00:44]} Kb8 {[%emt 0:01:01]} 53. Ra7 {[%emt 0:00:21]} Bc8 {[%emt 0:00:16]} 54. Rxb7+ {[%emt 0:00:32]} Kxb7 {[%emt 0:00:02]} 55. Rd8 {[%emt 0:00:10]} Rxh5 {[%emt 0:00:33]} 56. Rg8 {[%emt 0:00:10]} Rg5 {[%emt 0:00:47]} 57. Bf1 {[%emt 0:00:24]} Bxf5 {[%emt 0:00:48]} 58. exf5 {[%emt 0:01:32]} Rxf5+ {[%emt 0:00:01]} 59. Ke1 {[%emt 0:00:12]} Rg5 {[%emt 0:00:13]} 60. Rxg7+ {[%emt 0:00:05]} Kxb6 {[%emt 0:00:02]} 61. Bxc4 {[%emt 0:00:17]} h5 {[%emt 0:00:27]} 62. Bf7 {[%emt 0:00:07]} Kc6 {[%emt 0:00:44]} 63. Rh7 {[%emt 0:00:14]} 1-0

[Event "10th Iberoamericano-ch 2024"]
[Site "Linares"]
[Date "2024.09.25"]
[Round "1.30"]
[White "Abrisqueta Zudaire, Leyre"]
[Black "Cesar Maestre, Bernardo"]
[Result "1/2-1/2"]
[ECO "D02"]
[WhiteElo "2057"]
[BlackElo "2369"]
[Annotator "RC"]
[PlyCount "114"]
[EventDate "2024.09.25"]
[EventType "swiss"]
[EventCountry "ESP"]
[SourceTitle "playchess.com"]
[Source "ChessBase"]
[SourceQuality "1"]
[TimeControl "5400+30"]

1. d4 {[%emt 0:00:04]} d5 {[%emt 0:00:04]} 2. Nf3 {[%emt 0:00:13]} Nf6 {[%emt 0:00:07]} 3. c4 e6 {[%emt 0:00:08]} 4. g3 {[%emt 0:00:18]} dxc4 {[%emt 0:00:06]} 5. Qa4+ {[%emt 0:06:19]} Nbd7 {[%emt 0:01:27]} 6. Bg2 {[%emt 0:05:01]} a6 {[%emt 0:02:49]} 7. Qxc4 {[%emt 0:05:28]} b5 {[%emt 0:00:45]} 8. Qd3 Bb7 {[%emt 0:00:21]} 9. Nbd2 {[%emt 0:11:13]} c5 {[%emt 0:00:53]} 10. dxc5 {[%emt 0:01:17]} Bxc5 {[%emt 0:02:12]} 11. O-O {[%emt 0:01:45]} O-O {[%emt 0:01:40]} 12. a3 {[%emt 0:02:55]} a5 {[%emt 0:08:03]} 13. b3 {[%emt 0:04:24]} Qb6 {[%emt 0:08:53]} 14. e4 {[%emt 0:11:14]} Rfd8 {[%emt 0:02:40]} 15. Qe2 {[%emt 0:00:27]} b4 {[%emt 0:10:18]} 16. Nc4 {[%emt 0:02:23]} Qb5 {[%emt 0:02:44]} 17. a4 {[%emt 0:02:14]} Qa6 {[%emt 0:00:06]} 18. e5 {[%emt 0:08:47]} Nd5 {[%emt 0:01:35]} 19. Bb2 {[%emt 0:06:24]} N7b6 {[%emt 0:03:11]} 20. Ng5 {[%emt 0:05:55]} h6 {[%emt 0:01:51]} 21. Ne4 {[%emt 0:00:09]} Be7 {[%emt 0:00:27]} 22. Rfc1 {[%emt 0:04:53]} Rac8 {[%emt 0:02:47]} 23. Qg4 {[%emt 0:05:45]} Nxc4 {[%emt 0:04:28]} 24. bxc4 {[%emt 0:00:08]} Nc3 {[%emt 0:07:59]} 25. Bxc3 {[%emt 0:04:01]} bxc3 {[%emt 0:00:10]} 26. Rxc3 {[%emt 0:00:38]} Bxe4 {[%emt 0:06:46]} 27. Qxe4 {[%emt 0:00:02]} Bc5 {[%emt 0:02:52]} 28. Rd3 {[%emt 0:01:08]} Qb6 {[%emt 0:00:35]} 29. Rxd8+ {[%emt 0:01:45]} Rxd8 {[%emt 0:00:06]} 30. Qc2 {[%emt 0:03:54]} Qb4 {[%emt 0:05:45]} 31. Ra2 {[%emt 0:03:02]} Qe1+ {[%emt 0:00:24]} 32. Bf1 {[%emt 0:00:03]} Qxe5 {[%emt 0:01:08]} 33. Kg2 {[%emt 0:01:07]} g6 {[%emt 0:01:26]} 34. Rb2 {[%emt 0:00:26]} Bb4 {[%emt 0:00:30]} 35. Qb1 {[%emt 0:01:31]} h5 {[%emt 0:00:59]} 36. h4 {[%emt 0:00:01]} Rd4 {[%emt 0:00:40]} 37. Ra2 {[%emt 0:01:56]} Qd6 {[%emt 0:01:04]} 38. Be2 {[%emt 0:00:16]} e5 {[%emt 0:00:38]} 39. Qc1 {[%emt 0:00:22]} e4 {[%emt 0:05:13]} 40. Qg5 {[%emt 0:00:35]} Bd2 {[%emt 0:04:50]} 41. Qb5 {[%emt 0:00:12]} Qf6 {[%emt 0:00:57]} 42. c5 {[%emt 0:01:30]} Be1 {[%emt 0:00:13]} 43. Bf1 {[%emt 0:00:51]} Kh7 {[%emt 0:06:35]} 44. Qb3 {[%emt 0:00:45]} Rb4 {[%emt 0:01:43]} 45. Qe3 {[%emt 0:00:29]} Bc3 {[%emt 0:00:14]} 46. c6 {[%emt 0:00:42]} Qxc6 {[%emt 0:01:05]} 47. Rc2 {[%emt 0:00:01]} Rb3 {[%emt 0:00:09]} 48. Bb5 {[%emt 0:00:09]} Qf6 {[%emt 0:00:54]} 49. Qxe4 {[%emt 0:00:13]} Bd4 {[%emt 0:00:45]} 50. Rd2 {[%emt 0:00:31]} Rb4 {[%emt 0:00:26]} 51. Qf3 {[%emt 0:00:14]} Qxf3+ {[%emt 0:00:23]} 52. Kxf3 {[%emt 0:00:01]} Kg7 {[%emt 0:00:09]} 53. Re2 {[%emt 0:01:15]} Rb3+ {[%emt 0:00:28]} 54. Kg2 {[%emt 0:00:15]} Kf6 {[%emt 0:00:40]} 55. Re4 {[%emt 0:00:14]} Be5 {[%emt 0:00:35]} 56. Rc4 {[%emt 0:00:35]} Rc3 {[%emt 0:00:22]} 57. Rxc3 {[%emt 0:00:06]} Bxc3 {[%emt 0:00:04]} 1/2-1/2

[Event "10th Iberoamericano-ch 2024"]
[Site "Linares"]
[Date "2024.09.25"]
[Round "1.31"]
[White "Panelo, Marcelo"]
[Black "Buiza Prieto, Eihartze"]
[Result "1-0"]
[ECO "D00"]
[WhiteElo "2364"]
[BlackElo "2056"]
[Annotator "RC"]
[PlyCount "45"]
[EventDate "2024.09.25"]
[EventType "swiss"]
[EventCountry "ESP"]
[SourceTitle "playchess.com"]
[Source "ChessBase"]
[SourceQuality "1"]
[TimeControl "5400+30"]

1. d4 {[%emt 0:00:08]} d5 {[%emt 0:00:22]} 2. Bf4 {[%emt 0:02:19]} Nf6 {[%emt 0:01:05]} 3. e3 {[%emt 0:01:04]} e6 {[%emt 0:02:38]} 4. Nf3 {[%emt 0:00:31]} Be7 {[%emt 0:01:56]} 5. Bd3 {[%emt 0:01:35]} b6 {[%emt 0:03:58]} 6. Nbd2 {[%emt 0:04:25]} Bb7 {[%emt 0:05:05]} 7. Ne5 {[%emt 0:02:50]} O-O {[%emt 0:09:06]} 8. c3 {[%emt 0:11:41]} Nbd7 {[%emt 0:03:27]} 9. Qf3 {[%emt 0:10:55]} c5 {[%emt 0:12:58]} 10. Rd1 {[%emt 0:02:52]} Re8 {[%emt 0:08:25]} 11. Qh3 {[%emt 0:11:46]} Nf8 {[%emt 0:02:12]} 12. Ndf3 {[%emt 0:10:42]} c4 {[%emt 0:08:06]} 13. Bc2 {[%emt 0:00:58]} N6d7 {[%emt 0:06:32]} 14. Qh5 {[%emt 0:15:45]} Nxe5 {[%emt 0:08:11]} 15. Nxe5 {[%emt 0:02:23]} Ng6 {[%emt 0:01:54]} 16. h4 {[%emt 0:01:21]} Bd6 {[%emt 0:05:48]} 17. Rh3 {[%emt 0:03:43]} Bxe5 {[%emt 0:04:03]} 18. dxe5 {[%emt 0:00:17]} Nf8 {[%emt 0:02:57]} 19. Ba4 {[%emt 0:07:42]} Nd7 {[%emt 0:02:10]} 20. Rg3 {[%emt 0:02:37]} a6 {[%emt 0:06:25]} 21. Bg5 {[%emt 0:02:44]} Qc7 {[%emt 0:01:51]} 22. Bxd7 {[%emt 0:00:22]} Qxd7 {[%emt 0:00:18]} 23. Bf6 {[%emt 0:00:12]} 1-0

[Event "10th Iberoamericano-ch 2024"]
[Site "Linares"]
[Date "2024.09.25"]
[Round "1.32"]
[White "Portero Rubio, Martin"]
[Black "Garcia, Jhoel"]
[Result "0-1"]
[ECO "B81"]
[WhiteElo "2043"]
[BlackElo "2360"]
[Annotator "RC"]
[PlyCount "84"]
[EventDate "2024.09.25"]
[EventType "swiss"]
[EventCountry "ESP"]
[SourceTitle "playchess.com"]
[Source "ChessBase"]
[SourceQuality "1"]
[TimeControl "5400+30"]

1. e4 {[%emt 0:00:13]} c5 {[%emt 0:03:38]} 2. Nf3 {[%emt 0:00:05]} e6 {[%emt 0:01:35]} 3. d4 {[%emt 0:00:07]} cxd4 4. Nxd4 {[%emt 0:00:07]} Nf6 {[%emt 0:00:20]} 5. Nc3 {[%emt 0:01:43]} d6 {[%emt 0:01:00]} 6. g4 {[%emt 0:03:01]} h6 {[%emt 0:01:15]} 7. h4 {[%emt 0:02:55]} Nc6 {[%emt 0:05:58]} 8. Bg2 {[%emt 0:05:47]} Nxd4 {[%emt 0:17:19]} 9. Qxd4 {[%emt 0:00:28]} Nxg4 {[%emt 0:10:06]} 10. f3 {[%emt 0:06:29]} Ne5 {[%emt 0:05:39]} 11. Be3 {[%emt 0:04:07]} Bd7 {[%emt 0:15:43]} 12. O-O-O {[%emt 0:10:55]} Rc8 {[%emt 0:05:10]} 13. f4 {[%emt 0:11:26]} Nc4 {[%emt 0:00:33]} 14. Bf1 {[%emt 0:11:04]} Nxe3 {[%emt 0:05:32]} 15. Qxe3 {[%emt 0:00:02]} Qa5 {[%emt 0:07:11]} 16. Kb1 {[%emt 0:12:22]} Be7 {[%emt 0:03:32]} 17. Qd4 {[%emt 0:00:49]} Bf8 {[%emt 0:03:58]} 18. Bh3 {[%emt 0:08:39]} Qc5 {[%emt 0:01:49]} 19. Qd2 {[%emt 0:00:25]} Be7 {[%emt 0:01:12]} 20. Rhg1 {[%emt 0:03:49]} Rc6 {[%emt 0:01:37]} 21. e5 {[%emt 0:02:33]} d5 {[%emt 0:02:30]} 22. Rxg7 {[%emt 0:02:02]} Rb6 {[%emt 0:02:51]} 23. Rg3 {[%emt 0:07:51]} Qb4 {[%emt 0:00:58]} 24. b3 {[%emt 0:01:08]} Bxh4 {[%emt 0:00:08]} 25. Rd3 {[%emt 0:00:51]} Rc6 {[%emt 0:00:45]} 26. Kb2 {[%emt 0:03:22]} Be7 {[%emt 0:00:26]} 27. Qe3 {[%emt 0:01:00]} Qa5 {[%emt 0:01:04]} 28. Nxd5 {[%emt 0:00:22]} Qa3+ {[%emt 0:00:27]} 29. Kb1 {[%emt 0:00:02]} exd5 {[%emt 0:00:18]} 30. Bxd7+ {[%emt 0:00:38]} Kxd7 {[%emt 0:00:05]} 31. Rxd5+ {[%emt 0:00:35]} Kc8 {[%emt 0:01:14]} 32. Rd7 {[%emt 0:00:46]} Kb8 {[%emt 0:00:21]} 33. f5 {[%emt 0:00:43]} Rhc8 {[%emt 0:00:18]} 34. c4 {[%emt 0:00:29]} Rxc4 {[%emt 0:01:01]} 35. Rxe7 {[%emt 0:00:16]} Rc2 {[%emt 0:00:17]} 36. Rxb7+ {[%emt 0:00:42]} Kxb7 {[%emt 0:00:17]} 37. Qe4+ {[%emt 0:00:19]} R2c6 {[%emt 0:00:33]} 38. e6 {[%emt 0:00:23]} fxe6 {[%emt 0:00:12]} 39. fxe6 {[%emt 0:00:03]} Kb6 {[%emt 0:01:53]} 40. Qe3+ {[%emt 0:00:09]} Qc5 {[%emt 0:00:10]} 41. Qxc5+ {[%emt 0:00:32]} Kxc5 {[%emt 0:00:09]} 42. e7 {[%emt 0:00:07]} Re8 {[%emt 0:00:15]} 0-1